[Event "Nordic Chess-ch 2019"]
[Site "Sarpsborg"]
[Date "2019.06.23"]
[Round "4.33"]
[White "Holst, Conny"]
[Black "Andersen, Harry"]
[Result "1-0"]
[ECO "D85"]
[WhiteElo "2197"]
[BlackElo "1905"]
[Annotator "NA"]
[PlyCount "91"]
[EventDate "2019.06.21"]
[EventType "swiss"]
[EventCountry "NOR"]
[SourceTitle "playchess.com"]
[Source "ChessBase"]
[SourceQuality "1"]
[TimeControl "40/5400+30:1800+30"]

1. d4 {[%emt 0:00:00]} Nf6 {[%emt 0:48:17]} 2. c4 {[%emt 0:00:00]} g6 {[%emt 0:00:09]} 3. Nc3 {[%emt 0:00:05]} d5 {[%emt 0:00:10]} 4. cxd5 {[%emt 0:01:47]} Nxd5 {[%emt 0:00:09]} 5. e4 {[%emt 0:00:09]} Nxc3 {[%emt 0:00:05]} 6. bxc3 {[%emt 0:00:08]} Bg7 {[%emt 0:00:06]} 7. Nf3 {[%emt 0:02:17]} c5 {[%emt 0:01:20]} 8. Be3 {[%emt 0:04:43]} Nc6 {[%emt 0:03:38]} 9. Be2 {[%emt 0:17:37]} O-O {[%emt 0:02:56]} 10. O-O {[%emt 0:02:20]} cxd4 {[%emt 0:00:45]} 11. cxd4 {[%emt 0:00:52]} Bg4 {[%emt 0:01:19]} 12. d5 {[%emt 0:06:28]} Ne5 {[%emt 0:03:38]} 13. Nxe5 {[%emt 0:02:24]} Bxe2 {[%emt 0:00:21]} 14. Qxe2 {[%emt 0:00:09]} Bxe5 {[%emt 0:00:10]} 15. Rac1 {[%emt 0:05:51]} a6 {[%emt 0:02:50]} 16. f4 {[%emt 0:07:04]} Bg7 {[%emt 0:00:35]} 17. Rfd1 {[%emt 0:02:52]} Rc8 {[%emt 0:00:15]} 18. Rxc8 {[%emt 0:02:41]} Qxc8 {[%emt 0:00:10]} 19. Rc1 {[%emt 0:00:15]} Qd7 {[%emt 0:00:33]} 20. Qc4 {[%emt 0:05:09]} Bb2 {[%emt 0:02:58]} 21. Rc2 {[%emt 0:01:58]} Ba1 {[%emt 0:00:17]} 22. h3 {[%emt 0:04:24]} Qd6 {[%emt 0:01:11]} 23. e5 {[%emt 0:04:04]} Qa3 {[%emt 0:02:37]} 24. Kf2 {[%emt 0:08:35]} Qa5 {[%emt 0:07:35]} 25. Qb3 {[%emt 0:06:13]} Qb5 {[%emt 0:02:12]} 26. Qxb5 {[%emt 0:00:34]} axb5 {[%emt 0:00:16]} 27. Rc7 {[%emt 0:01:56]} Rd8 {[%emt 0:02:52]} 28. Rxe7 {[%emt 0:01:13]} Rxd5 {[%emt 0:00:14]} 29. Rxb7 {[%emt 0:00:27]} Bd4 {[%emt 0:01:40]} 30. Kf3 {[%emt 0:02:04]} Bxe3 {[%emt 0:01:25]} 31. Kxe3 {[%emt 0:00:09]} Rc5 {[%emt 0:00:41]} 32. Rd7 {[%emt 0:02:17]} g5 {[%emt 0:03:14]} 33. g3 {[%emt 0:00:25]} gxf4+ {[%emt 0:00:18]} 34. gxf4 {[%emt 0:00:10]} Rc1 {[%emt 0:00:32]} 35. Ke4 {[%emt 0:01:46]} Kg7 {[%emt 0:01:28]} 36. Kf5 {[%emt 0:01:16]} Re1 {[%emt 0:03:20]} 37. Rb7 {[%emt 0:01:00]} Re2 {[%emt 0:00:22]} 38. a3 {[%emt 0:01:04]} Re3 {[%emt 0:00:15]} 39. h4 {[%emt 0:00:14]} h6 {[%emt 0:00:30]} 40. h5 {[%emt 0:00:57]} Rh3 {[%emt 0:07:33]} 41. e6 {[%emt 0:31:21]} Rxh5+ {[%emt 0:30:12]} 42. Kg4 {[%emt 0:00:20]} Rc5 {[%emt 0:00:10]} 43. Rxf7+ {[%emt 0:00:37]} Kg8 {[%emt 0:00:21]} 44. f5 {[%emt 0:02:36]} Rc3 {[%emt 0:00:44]} 45. Rb7 {[%emt 0:01:09]} Rxa3 {[%emt 0:00:15]} 46. Rb8+ {[%emt 0:01:09]} 1-0

[Event "Nordic Chess-ch 2019"]
[Site "Sarpsborg"]
[Date "2019.06.23"]
[Round "4.34"]
[White "Hauge, Tor Arne"]
[Black "Skogheim, Ole Morten"]
[Result "1/2-1/2"]
[ECO "A11"]
[WhiteElo "2022"]
[BlackElo "1950"]
[Annotator "NA"]
[PlyCount "119"]
[EventDate "2019.06.21"]
[EventType "swiss"]
[EventCountry "NOR"]
[SourceTitle "playchess.com"]
[Source "ChessBase"]
[SourceQuality "1"]
[TimeControl "40/5400+30:1800+30"]

1. Nf3 {[%emt 0:00:09]} d5 {[%emt 0:00:00]} 2. g3 {[%emt 0:00:28]} Nf6 {[%emt 0:00:56]} 3. Bg2 {[%emt 0:00:12]} g6 {[%emt 0:00:26]} 4. O-O {[%emt 0:01:13]} Bg7 {[%emt 0:02:03]} 5. c4 {[%emt 0:01:42]} c6 {[%emt 0:01:53]} 6. Qc2 {[%emt 0:07:31]} O-O $11 {[%emt 0:01:27]} 7. b3 {[%emt 0:01:17]} Bf5 {[%emt 0:08:08]} 8. d3 {[%emt 0:00:52]} Na6 {[%emt 0:02:58]} 9. Bb2 {[%emt 0:03:28]} Re8 {[%emt 0:04:09]} 10. a3 {[%emt 0:08:03]} Qb6 {[%emt 0:09:04]} 11. Nbd2 {[%emt 0:06:52]} Nd7 {[%emt 0:14:04]} 12. Bxg7 {[%emt 0:05:27]} Kxg7 {[%emt 0:00:07]} 13. e4 {[%emt 0:00:51]} dxe4 {[%emt 0:01:50]} 14. dxe4 {[%emt 0:00:58]} Bg4 {[%emt 0:01:30]} 15. h3 {[%emt 0:04:38]} Bxf3 {[%emt 0:01:03]} 16. Nxf3 {[%emt 0:00:42]} e5 {[%emt 0:02:50]} 17. b4 {[%emt 0:00:49]} c5 {[%emt 0:01:57]} 18. b5 {[%emt 0:06:27]} Nc7 {[%emt 0:00:15]} 19. a4 {[%emt 0:03:27]} Ne6 {[%emt 0:00:21]} 20. a5 {[%emt 0:03:05]} Qc7 {[%emt 0:00:14]} 21. Nd2 {[%emt 0:07:14]} Rad8 {[%emt 0:05:54]} 22. Nb1 {[%emt 0:00:54]} Ndf8 {[%emt 0:05:36]} 23. Nc3 {[%emt 0:00:47]} Nd4 {[%emt 0:00:23]} 24. Qb2 {[%emt 0:00:36]} Qd7 {[%emt 0:01:19]} 25. Nd5 {[%emt 0:06:11]} Nfe6 {[%emt 0:06:47]} 26. f4 {[%emt 0:02:34]} f6 {[%emt 0:03:11]} 27. fxe5 {[%emt 0:01:12]} fxe5 {[%emt 0:00:17]} 28. Nf6 {[%emt 0:01:06]} Qc8 {[%emt 0:02:55]} 29. Nxe8+ {[%emt 0:00:24]} Rxe8 {[%emt 0:00:06]} 30. Rf2 {[%emt 0:02:19]} Ng5 {[%emt 0:02:38]} 31. Kh2 {[%emt 0:00:52]} Re7 {[%emt 0:03:11]} 32. Raf1 {[%emt 0:06:30]} Qe6 {[%emt 0:02:35]} 33. Qa2 {[%emt 0:04:41]} Nf7 {[%emt 0:02:25]} 34. Rf6 {[%emt 0:00:28]} Qd7 {[%emt 0:00:24]} 35. Qf2 {[%emt 0:02:12]} h5 {[%emt 0:02:18]} 36. h4 {[%emt 0:02:36]} Nh6 {[%emt 0:00:29]} 37. Bh3 {[%emt 0:00:10]} Ng4+ {[%emt 0:00:10]} 38. Bxg4 {[%emt 0:00:05]} hxg4 {[%emt 0:00:14]} 39. Rf8 {[%emt 0:04:17]} Nf3+ {[%emt 0:00:57]} 40. Rxf3 {[%emt 0:00:05]} gxf3 {[%emt 0:00:08]} 41. Qxf3 {[%emt 0:35:16]} Kh7 {[%emt 0:37:01]} 42. Qf8 {[%emt 0:00:00]} Rg7 {[%emt 0:00:00]} 43. Qxc5 {[%emt 0:00:00]} Qd3 {[%emt 0:00:00]} 44. Rf8 {[%emt 0:00:00]} Qe2+ {[%emt 0:00:00]} 45. Rf2 {[%emt 0:00:00]} Qxe4 {[%emt 0:00:00]} 46. Qxa7 {[%emt 0:00:00]} Qxc4 {[%emt 0:00:00]} 47. Qb6 {[%emt 0:00:00]} e4 {[%emt 0:00:00]} 48. a6 {[%emt 0:00:00]} bxa6 {[%emt 0:00:00]} 49. bxa6 {[%emt 0:00:00]} e3 {[%emt 0:00:00]} 50. Qxe3 {[%emt 0:00:04]} Qxa6 {[%emt 0:00:00]} 51. Qe8 {[%emt 0:01:35]} Rc7 {[%emt 0:00:00]} 52. Rf7+ {[%emt 0:00:40]} Rxf7 {[%emt 0:00:00]} 53. Qxf7+ {[%emt 0:00:04]} Kh8 {[%emt 0:00:00]} 54. Qe8+ {[%emt 0:00:22]} Kg7 {[%emt 0:00:00]} 55. h5 {[%emt 0:00:54]} gxh5 {[%emt 0:00:00]} 56. Qxh5 {[%emt 0:00:47]} Qh6 {[%emt 0:00:00]} 57. Qh3 {[%emt 0:00:18]} Kg6 {[%emt 0:00:00]} 58. Qxh6+ {[%emt 0:00:51]} Kxh6 {[%emt 0:00:00]} 59. Kh3 {[%emt 0:00:05]} Kg5 {[%emt 0:00:00]} 60. g4 {[%emt 0:05:40]} 1/2-1/2

[Event "Nordic Chess-ch 2019"]
[Site "Sarpsborg"]
[Date "2019.06.23"]
[Round "4.35"]
[White "Mirza, Raad"]
[Black "Larsen, Bjorn"]
[Result "0-1"]
[ECO "C50"]
[WhiteElo "1991"]
[BlackElo "1680"]
[Annotator "NA"]
[PlyCount "180"]
[EventDate "2019.06.21"]
[EventType "swiss"]
[EventCountry "NOR"]
[SourceTitle "playchess.com"]
[Source "ChessBase"]
[SourceQuality "1"]
[TimeControl "40/5400+30:1800+30"]

1. e4 {[%emt 0:00:00]} e5 {[%emt 0:00:43]} 2. Nf3 {[%emt 0:00:00]} Nc6 {[%emt 0:00:18]} 3. Bc4 {[%emt 0:00:00]} Bc5 {[%emt 0:00:19]} 4. O-O {[%emt 0:00:00]} Nf6 {[%emt 0:01:21]} 5. d4 {[%emt 0:01:41]} Bxd4 {[%emt 0:01:14]} 6. Nxd4 {[%emt 0:00:20]} Nxd4 {[%emt 0:00:16]} 7. f4 {[%emt 0:03:08]} d6 {[%emt 0:00:18]} 8. fxe5 {[%emt 0:00:52]} dxe5 {[%emt 0:00:32]} 9. Bg5 {[%emt 0:00:48]} Qe7 {[%emt 0:10:38]} 10. c3 {[%emt 0:05:43]} Be6 {[%emt 0:00:21]} 11. Bd3 {[%emt 0:01:33]} Nc6 {[%emt 0:03:43]} 12. Bxf6 {[%emt 0:00:04]} gxf6 {[%emt 0:00:06]} 13. Qf3 {[%emt 0:01:04]} O-O-O {[%emt 0:05:00]} 14. Be2 {[%emt 0:04:01]} f5 {[%emt 0:04:26]} 15. exf5 {[%emt 0:00:02]} Bd5 {[%emt 0:01:21]} 16. f6 {[%emt 0:03:08]} Qc5+ {[%emt 0:00:48]} 17. Qf2 {[%emt 0:00:02]} Qxf2+ {[%emt 0:01:48]} 18. Rxf2 {[%emt 0:00:02]} Rhg8 {[%emt 0:01:07]} 19. Na3 {[%emt 0:01:23]} Rg5 {[%emt 0:03:51]} 20. Nc4 {[%emt 0:01:36]} Rdg8 {[%emt 0:03:22]} 21. Ne3 {[%emt 0:00:55]} Be6 {[%emt 0:03:16]} 22. Kh1 {[%emt 0:03:32]} h5 {[%emt 0:01:33]} 23. h4 {[%emt 0:04:33]} Rg3 {[%emt 0:04:06]} 24. Bf3 {[%emt 0:00:45]} e4 {[%emt 0:05:05]} 25. Nf1 {[%emt 0:02:36]} exf3 {[%emt 0:03:42]} 26. Nxg3 {[%emt 0:00:03]} Rxg3 {[%emt 0:00:31]} 27. Kh2 {[%emt 0:00:24]} Rxg2+ {[%emt 0:00:36]} 28. Rxg2 {[%emt 0:00:02]} fxg2 {[%emt 0:00:21]} 29. Kxg2 {[%emt 0:00:15]} Ne5 {[%emt 0:02:54]} 30. Re1 {[%emt 0:03:21]} Nd7 {[%emt 0:01:34]} 31. Rf1 {[%emt 0:00:55]} Kd8 {[%emt 0:06:22]} 32. a3 {[%emt 0:02:55]} Ke8 {[%emt 0:00:10]} 33. Kg3 {[%emt 0:00:02]} Kf8 {[%emt 0:00:24]} 34. Kf4 {[%emt 0:09:24]} Nxf6 {[%emt 0:04:10]} 35. Kg5 {[%emt 0:00:02]} Ne4+ {[%emt 0:00:58]} 36. Kf4 {[%emt 0:00:24]} Nd6 {[%emt 0:03:02]} 37. Kg5 {[%emt 0:00:38]} Bg4 {[%emt 0:00:32]} 38. Kf6 {[%emt 0:00:52]} Ne8+ {[%emt 0:04:04]} 39. Ke5 {[%emt 0:00:27]} f6+ {[%emt 0:04:01]} 40. Kf4 {[%emt 0:00:23]} Kf7 {[%emt 0:00:40]} 41. b3 {[%emt 0:31:38]} Nd6 {[%emt 0:31:07]} 42. c4 {[%emt 0:00:23]} Nf5 {[%emt 0:01:54]} 43. Rh1 {[%emt 0:00:54]} Nd4 {[%emt 0:06:27]} 44. Rb1 {[%emt 0:00:11]} Ke7 {[%emt 0:03:57]} 45. Rb2 {[%emt 0:00:15]} Nf3 {[%emt 0:03:08]} 46. Kg3 {[%emt 0:00:30]} Kd6 {[%emt 0:04:48]} 47. b4 {[%emt 0:00:04]} b6 {[%emt 0:01:08]} 48. Re2 {[%emt 0:01:01]} Ne5 {[%emt 0:00:40]} 49. Re4 {[%emt 0:00:07]} a5 {[%emt 0:00:00]} 50. Rf4 {[%emt 0:00:00]} axb4 {[%emt 0:00:00]} 51. axb4 {[%emt 0:00:00]} Ke7 {[%emt 0:00:00]} 52. Rd4 {[%emt 0:02:05]} Be6 {[%emt 0:00:00]} 53. c5 {[%emt 0:00:41]} bxc5 {[%emt 0:00:00]} 54. bxc5 {[%emt 0:00:04]} Nd7 {[%emt 0:00:00]} 55. c6 {[%emt 0:04:54]} Ne5 {[%emt 0:00:00]} 56. Kf4 {[%emt 0:00:40]} Nxc6 {[%emt 0:00:00]} 57. Ra4 {[%emt 0:00:02]} Kd7 {[%emt 0:00:00]} 58. Ra8 {[%emt 0:00:43]} Nd8 {[%emt 0:00:00]} 59. Ra7 {[%emt 0:00:56]} Bg4 {[%emt 0:00:00]} 60. Ke4 {[%emt 0:00:51]} f5+ {[%emt 0:00:00]} 61. Kf4 {[%emt 0:00:07]} Ne6+ {[%emt 0:00:00]} 62. Ke5 {[%emt 0:00:06]} f4 {[%emt 0:00:00]} 63. Ra2 {[%emt 0:01:18]} f3 {[%emt 0:00:00]} 64. Rd2+ {[%emt 0:00:34]} Kc6 {[%emt 0:00:00]} 65. Rc2+ {[%emt 0:00:07]} Kb5 {[%emt 0:00:00]} 66. Rf2 {[%emt 0:07:26]} Kc4 {[%emt 0:00:00]} 67. Ke4 {[%emt 0:00:15]} Nc5+ {[%emt 0:00:00]} 68. Ke3 {[%emt 0:00:05]} Nb3 {[%emt 0:00:00]} 69. Rc2+ {[%emt 0:00:08]} Kd5 {[%emt 0:00:00]} 70. Rxc7 {[%emt 0:00:10]} Kd6 {[%emt 0:00:00]} 71. Rc3 {[%emt 0:04:00]} Nc5 {[%emt 0:00:00]} 72. Rc4 {[%emt 0:01:15]} Ne6 {[%emt 0:01:06]} 73. Ra4 {[%emt 0:00:54]} Ng7 {[%emt 0:00:44]} 74. Kf2 {[%emt 0:12:12]} Nf5 {[%emt 0:00:34]} 75. Ra5 {[%emt 0:03:13]} Nxh4 {[%emt 0:00:34]} 76. Kg3 {[%emt 0:01:10]} Nf5+ {[%emt 0:00:41]} 77. Kf2 {[%emt 0:00:16]} Ke6 {[%emt 0:00:17]} 78. Rb5 {[%emt 0:01:17]} Kf6 {[%emt 0:00:11]} 79. Rb8 {[%emt 0:00:29]} Kg5 {[%emt 0:00:10]} 80. Rb4 {[%emt 0:00:27]} h4 {[%emt 0:00:29]} 81. Ra4 {[%emt 0:00:08]} h3 {[%emt 0:00:22]} 82. Ra8 {[%emt 0:00:11]} h2 {[%emt 0:01:51]} 83. Ra1 {[%emt 0:07:05]} Kh4 {[%emt 0:00:20]} 84. Ra8 {[%emt 0:00:34]} h1=Q {[%emt 0:11:59]} 85. Rh8+ {[%emt 0:15:09]} Nh6 {[%emt 0:00:00]} 86. Rxh6+ {[%emt 0:00:00]} Bh5 {[%emt 0:00:00]} 87. Re6 {[%emt 0:00:00]} Qg2+ {[%emt 0:00:00]} 88. Ke3 {[%emt 0:00:00]} Qe2+ {[%emt 0:00:00]} 89. Kf4 {[%emt 0:00:00]} Qc4+ {[%emt 0:00:00]} 90. Re4 {[%emt 0:00:00]} Qxe4+ {[%emt 0:00:00]} 0-1

[Event "Nordic Chess-ch 2019"]
[Site "Sarpsborg"]
[Date "2019.06.23"]
[Round "4.36"]
[White "Kirppo, Ronny"]
[Black "Stubrud, Jan Magne"]
[Result "1-0"]
[ECO "E02"]
[WhiteElo "1910"]
[BlackElo "1681"]
[Annotator "NA"]
[PlyCount "73"]
[EventDate "2019.06.21"]
[EventType "swiss"]
[EventCountry "NOR"]
[SourceTitle "playchess.com"]
[Source "ChessBase"]
[SourceQuality "1"]
[TimeControl "40/5400+30:1800+30"]

1. d4 {[%emt 0:00:00]} d5 {[%emt 0:00:09]} 2. c4 {[%emt 0:00:00]} e6 {[%emt 0:00:20]} 3. Nf3 {[%emt 0:00:32]} Nf6 {[%emt 0:00:26]} 4. g3 {[%emt 0:00:24]} Be7 {[%emt 0:02:52]} 5. Bg2 {[%emt 0:00:51]} O-O {[%emt 0:00:54]} 6. O-O {[%emt 0:00:46]} dxc4 {[%emt 0:02:32]} 7. Qc2 {[%emt 0:04:29]} Bd7 {[%emt 0:06:07]} 8. Qxc4 {[%emt 0:08:10]} Bc6 {[%emt 0:01:06]} 9. Nc3 {[%emt 0:00:33]} Nbd7 {[%emt 0:01:11]} 10. Rd1 {[%emt 0:05:42]} Nb6 {[%emt 0:01:19]} 11. Qd3 {[%emt 0:00:48]} Nbd5 {[%emt 0:04:53]} 12. Ne5 {[%emt 0:12:29]} Nb4 {[%emt 0:10:25]} 13. Nxc6 {[%emt 0:02:14]} Nxd3 {[%emt 0:02:44]} 14. Nxd8 {[%emt 0:00:15]} Nxc1 {[%emt 0:00:30]} 15. Nxb7 {[%emt 0:00:21]} Nxe2+ {[%emt 0:03:51]} 16. Nxe2 {[%emt 0:00:10]} Rab8 {[%emt 0:00:07]} 17. Rd2 {[%emt 0:03:52]} Nd7 {[%emt 0:02:03]} 18. Rc1 {[%emt 0:00:49]} Rfc8 {[%emt 0:01:19]} 19. Nc5 {[%emt 0:01:44]} Nf8 {[%emt 0:03:18]} 20. Rdc2 {[%emt 0:04:03]} g5 {[%emt 0:02:53]} 21. Na6 {[%emt 0:08:25]} Rb6 {[%emt 0:01:35]} 22. Nc5 {[%emt 0:02:36]} Bd6 {[%emt 0:01:11]} 23. b3 {[%emt 0:01:02]} e5 {[%emt 0:00:39]} 24. Ne4 {[%emt 0:01:03]} Ba3 {[%emt 0:04:53]} 25. Rxc7 {[%emt 0:00:25]} Rd8 {[%emt 0:05:01]} 26. Rd1 {[%emt 0:00:49]} Ne6 {[%emt 0:03:35]} 27. Rxa7 {[%emt 0:00:27]} Bb2 {[%emt 0:05:22]} 28. d5 {[%emt 0:00:51]} Nd4 {[%emt 0:00:59]} 29. Nxd4 {[%emt 0:00:29]} Bxd4 {[%emt 0:00:16]} 30. Rc7 {[%emt 0:12:26]} h6 {[%emt 0:02:48]} 31. Rc6 {[%emt 0:02:09]} Rb5 {[%emt 0:11:34]} 32. Nd6 {[%emt 0:03:59]} Rb4 {[%emt 0:05:13]} 33. Nf5 {[%emt 0:01:48]} Ba7 {[%emt 0:06:42]} 34. d6 {[%emt 0:00:19]} Bb8 {[%emt 0:01:18]} 35. d7 {[%emt 0:01:10]} Rb7 {[%emt 0:00:46]} 36. Rc8 {[%emt 0:00:08]} Rbxd7 {[%emt 0:02:43]} 37. Rxd8+ {[%emt 0:00:15]} 1-0

[Event "Nordic Chess-ch 2019"]
[Site "Sarpsborg"]
[Date "2019.06.23"]
[Round "4.37"]
[White "Andersen, Odd"]
[Black "Rukovci, Shemsi"]
[Result "1/2-1/2"]
[ECO "C42"]
[WhiteElo "1751"]
[BlackElo "1907"]
[Annotator "NA"]
[PlyCount "111"]
[EventDate "2019.06.21"]
[EventType "swiss"]
[EventCountry "NOR"]
[SourceTitle "playchess.com"]
[Source "ChessBase"]
[SourceQuality "1"]
[TimeControl "40/5400+30:1800+30"]

1. e4 {[%emt 0:00:00]} e5 {[%emt 0:01:11]} 2. Nf3 {[%emt 0:00:00]} Nf6 {[%emt 0:00:28]} 3. Nc3 {[%emt 0:00:27]} Bb4 {[%emt 0:00:40]} 4. Nxe5 {[%emt 0:01:09]} Qe7 {[%emt 0:02:14]} 5. Nf3 {[%emt 0:01:34]} Nxe4 {[%emt 0:04:10]} 6. Nxe4 {[%emt 0:00:33]} Qxe4+ {[%emt 0:01:46]} 7. Qe2 {[%emt 0:04:36]} d5 {[%emt 0:03:27]} 8. c3 {[%emt 0:02:06]} Qxe2+ {[%emt 0:03:20]} 9. Bxe2 {[%emt 0:00:09]} Bd6 {[%emt 0:00:08]} 10. d4 {[%emt 0:00:22]} O-O {[%emt 0:00:25]} 11. O-O {[%emt 0:01:49]} Bf5 {[%emt 0:00:52]} 12. h3 {[%emt 0:02:38]} Nd7 {[%emt 0:03:55]} 13. Be3 {[%emt 0:01:35]} h6 {[%emt 0:01:39]} 14. Rad1 {[%emt 0:00:48]} Nf6 {[%emt 0:01:17]} 15. Bd3 {[%emt 0:00:58]} Ne4 {[%emt 0:02:10]} 16. Bb1 {[%emt 0:01:28]} Bh7 {[%emt 0:02:32]} 17. Rfe1 {[%emt 0:00:54]} Rae8 {[%emt 0:02:23]} 18. Nd2 {[%emt 0:02:46]} Nxd2 {[%emt 0:06:07]} 19. Bxh7+ {[%emt 0:00:54]} Kxh7 {[%emt 0:00:25]} 20. Bxd2 {[%emt 1:15:14]} f5 {[%emt 0:03:15]} 21. Rxe8 {[%emt 0:00:00]} Rxe8 {[%emt 0:00:00]} 22. Re1 {[%emt 0:00:00]} Rf8 {[%emt 0:00:50]} 23. f4 {[%emt 0:00:00]} Kg6 {[%emt 0:00:11]} 24. Kf2 {[%emt 0:00:00]} Kf6 {[%emt 0:00:01]} 25. h4 {[%emt 0:00:00]} Rc8 {[%emt 0:06:20]} 26. Be3 {[%emt 0:00:00]} Ke6 {[%emt 0:01:40]} 27. h5 {[%emt 0:00:00]} Kd7 {[%emt 0:02:11]} 28. Rg1 {[%emt 0:00:00]} Ke7 {[%emt 0:08:26]} 29. g4 {[%emt 0:00:00]} fxg4 {[%emt 0:00:26]} 30. Rxg4 {[%emt 0:00:00]} Kf7 {[%emt 0:00:25]} 31. Kf3 {[%emt 0:00:00]} b5 {[%emt 0:06:18]} 32. Rg2 {[%emt 0:00:00]} a5 {[%emt 0:03:47]} 33. b3 {[%emt 0:00:00]} Be7 {[%emt 0:02:06]} 34. Rg6 {[%emt 0:00:00]} Bf6 {[%emt 0:01:09]} 35. Rg1 {[%emt 0:00:00]} c5 {[%emt 0:08:32]} 36. dxc5 {[%emt 0:00:00]} Bxc3 {[%emt 0:01:25]} 37. Rd1 {[%emt 0:00:00]} d4 {[%emt 0:05:05]} 38. Bxd4 {[%emt 0:00:00]} Bxd4 {[%emt 0:00:11]} 39. Rxd4 {[%emt 0:00:00]} Rxc5 {[%emt 0:00:09]} 40. Kg4 {[%emt 0:00:00]} Ke6 {[%emt 0:01:49]} 41. Re4+ {[%emt 0:17:41]} Kf6 {[%emt 0:31:46]} 42. Re2 {[%emt 0:00:56]} b4 {[%emt 0:00:49]} 43. Rd2 {[%emt 0:00:18]} Ke6 {[%emt 0:03:29]} 44. Re2+ {[%emt 0:00:42]} Kd6 {[%emt 0:09:00]} 45. Rd2+ {[%emt 0:00:43]} Ke7 {[%emt 0:00:00]} 46. Re2+ {[%emt 0:00:00]} Kf7 {[%emt 0:00:00]} 47. Re5 {[%emt 0:00:00]} Rxe5 {[%emt 0:00:00]} 48. fxe5 {[%emt 0:00:00]} Ke6 {[%emt 0:00:00]} 49. Kf4 {[%emt 0:00:00]} Kf7 {[%emt 0:00:00]} 50. Ke4 {[%emt 0:00:00]} Ke7 {[%emt 0:00:00]} 51. Kd5 {[%emt 0:00:00]} Kd7 {[%emt 0:00:00]} 52. e6+ {[%emt 0:00:00]} Ke7 {[%emt 0:00:00]} 53. Ke5 {[%emt 0:26:10]} Ke8 54. Kd6 {[%emt 0:00:30]} Kd8 55. e7+ {[%emt 0:00:00]} Ke8 {[%emt 0:00:00]} 56. Ke6 {[%emt 0:00:00]} 1/2-1/2

[Event "Nordic Chess-ch 2019"]
[Site "Sarpsborg"]
[Date "2019.06.23"]
[Round "4.39"]
[White "Sather, Lars"]
[Black "Bergquist, Rune"]
[Result "0-1"]
[ECO "D35"]
[WhiteElo "1730"]
[BlackElo "1609"]
[Annotator "NA"]
[PlyCount "118"]
[EventDate "2019.06.21"]
[EventType "swiss"]
[EventCountry "NOR"]
[SourceTitle "playchess.com"]
[Source "ChessBase"]
[SourceQuality "1"]
[TimeControl "40/5400+30:1800+30"]

1. d4 {[%emt 0:00:00]} d5 {[%emt 0:00:00]} 2. c4 {[%emt 0:00:00]} e6 {[%emt 0:00:00]} 3. Nc3 {[%emt 0:00:00]} Nf6 {[%emt 0:00:00]} 4. f3 {[%emt 0:00:02]} Be7 {[%emt 0:01:33]} 5. e4 {[%emt 0:01:55]} c6 {[%emt 0:00:42]} 6. cxd5 {[%emt 0:01:31]} exd5 {[%emt 0:00:26]} 7. e5 {[%emt 0:00:10]} Nfd7 {[%emt 0:00:24]} 8. Bd3 {[%emt 0:00:26]} O-O {[%emt 0:00:58]} 9. Nge2 {[%emt 0:00:07]} Re8 {[%emt 0:01:39]} 10. O-O {[%emt 0:00:21]} Nf8 {[%emt 0:00:49]} 11. f4 {[%emt 0:00:48]} c5 {[%emt 0:06:27]} 12. Kh1 {[%emt 0:02:26]} Nc6 {[%emt 0:00:35]} 13. Bb1 {[%emt 0:02:21]} Bg4 {[%emt 0:09:59]} 14. Qd2 {[%emt 0:01:36]} Ne6 {[%emt 0:07:23]} 15. dxc5 {[%emt 0:04:10]} Nxc5 {[%emt 0:02:01]} 16. h3 {[%emt 0:02:02]} Bxe2 {[%emt 0:00:48]} 17. Qxe2 {[%emt 0:01:07]} Bf8 {[%emt 0:08:59]} 18. a3 {[%emt 0:03:59]} d4 {[%emt 0:06:02]} 19. Ne4 {[%emt 0:04:24]} d3 {[%emt 0:05:48]} 20. Qf3 {[%emt 0:03:38]} Nxe4 {[%emt 0:01:04]} 21. Qxe4 {[%emt 0:00:21]} g6 {[%emt 0:03:36]} 22. b4 {[%emt 0:04:31]} d2 {[%emt 0:00:49]} 23. Qf3 {[%emt 0:04:41]} dxc1=Q {[%emt 0:41:28]} 24. Rxc1 {[%emt 1:01:24]} Qb6 {[%emt 0:00:00]} 25. Ba2 {[%emt 0:00:00]} Nd4 {[%emt 0:00:00]} 26. Qd5 {[%emt 0:00:00]} Ne6 {[%emt 0:00:00]} 27. Rf1 {[%emt 0:00:00]} Rad8 {[%emt 0:00:00]} 28. Qb3 {[%emt 0:00:00]} Rd7 {[%emt 0:00:00]} 29. Rae1 {[%emt 0:00:00]} Red8 {[%emt 0:00:00]} 30. Bb1 {[%emt 0:00:00]} Ng7 {[%emt 0:00:00]} 31. Qg3 {[%emt 0:00:00]} Kh8 {[%emt 0:00:00]} 32. Be4 {[%emt 0:00:00]} Nh5 {[%emt 0:00:00]} 33. Qf3 {[%emt 0:00:00]} Ng7 {[%emt 0:00:00]} 34. g4 {[%emt 0:00:00]} Be7 {[%emt 0:00:00]} 35. f5 {[%emt 0:00:00]} Bh4 {[%emt 0:00:19]} 36. Rd1 {[%emt 0:00:00]} Rxd1 {[%emt 0:02:19]} 37. Rxd1 {[%emt 0:00:00]} Rxd1+ {[%emt 0:00:24]} 38. Qxd1 {[%emt 0:00:00]} gxf5 {[%emt 0:00:53]} 39. gxf5 {[%emt 0:00:00]} Qe3 {[%emt 0:02:09]} 40. Qg4 {[%emt 0:00:00]} Qe1+ {[%emt 0:01:23]} 41. Kh2 {[%emt 0:08:04]} Qf2+ {[%emt 0:30:35]} 42. Kh1 {[%emt 0:01:44]} h5 {[%emt 0:00:00]} 43. Qg2 {[%emt 0:00:00]} b6 {[%emt 0:00:00]} 44. f6 {[%emt 0:00:00]} Qxg2+ {[%emt 0:00:00]} 45. Kxg2 {[%emt 0:00:00]} Ne6 {[%emt 0:00:00]} 46. b5 {[%emt 0:00:00]} Bg5 {[%emt 0:00:00]} 47. a4 {[%emt 0:00:00]} Bf4 {[%emt 0:00:00]} 48. Bf3 {[%emt 0:00:00]} Bxe5 {[%emt 0:00:00]} 49. h4 {[%emt 0:00:00]} Bxf6 {[%emt 0:00:00]} 50. Kh3 {[%emt 0:00:00]} Kg7 {[%emt 0:00:00]} 51. Bxh5 {[%emt 0:00:00]} Nf4+ {[%emt 0:00:00]} 52. Kg4 {[%emt 0:00:00]} Nxh5 {[%emt 0:00:00]} 53. Kxh5 {[%emt 0:00:00]} Bxh4 {[%emt 0:00:00]} 54. Kxh4 {[%emt 0:00:00]} Kf6 {[%emt 0:00:00]} 55. Kg4 {[%emt 0:00:00]} Ke5 {[%emt 0:00:00]} 56. Kf3 {[%emt 0:00:00]} Kd4 {[%emt 0:00:00]} 57. Kf4 {[%emt 0:00:00]} Kc4 {[%emt 0:00:00]} 58. Ke5 {[%emt 0:00:00]} Kb4 {[%emt 0:00:00]} 59. Kd5 {[%emt 0:00:00]} Kxa4 {[%emt 0:00:00]} 0-1